{"text_format":"1","workbook":"xlsx","n_sheets":1,"sheets":["Hoja1"],"not_rendered":{"charts":0,"images":0,"macros":1,"external_links":0,"defined_names":0,"comments":0,"pivot_tables":0},"unopened":[],"bounds":{"document_bytes":16777216,"sheet_cells":100000,"rows_first":2000,"rows_last":500,"rows_between":2000,"halvings":0,"cell_chars":16384,"cell_head_chars":4096},"cells_cut":0,"cells_raw":0,"read":"whole","date_system":"1900"}

{"sheet":"Hoja1","index":0,"n_rows":29,"n_cols":37,"rows_kept":29,"cut":false,"hidden":false,"merged":[[0,29,0,36],[2,22,2,23],[2,26,2,27],[1,5,1,6],[2,3,2,4],[1,35,2,35],[1,36,2,36],[1,33,1,34],[2,33,2,34],[1,31,1,32],[2,31,2,32],[1,29,2,30],[2,13,2,14],[1,1,2,2],[1,3,1,4],[2,5,2,6],[0,1,0,14],[0,16,0,27],[1,18,1,21],[2,24,2,25],[2,18,2,19],[2,20,2,21],[1,16,2,17],[1,22,1,27],[1,7,1,10],[2,7,2,8],[2,9,2,10],[1,11,1,14],[2,11,2,12]]}
[null,"COMPETENCIAS SOCIAIS E CÍVICAS 5º PRIMARIA (I)",null,null,null,null,null,null,null,null,null,null,null,null,null,null,"COMPETENCIAS SOCIAIS E CÍVICAS (II)",null,null,null,null,null,null,null,null,null,null,null,null,"COMPETENCIAS SOCIAIS E CÍVICAS 5º PRIMARIA (III)"]
[null,"5º A",null,"C. DA NATUREZA",null,"CIENCIAS SOCIAIS",null,"EDUCACIÓN FÍSICA",null,null,null,"E. MUSICAL",null,null,null,null,"5º A",null,"L. CASTELÁ",null,null,null,"LINGUA GALEGA",null,null,null,null,null,null,"5º A",null,"E. PLÁSTICA",null,"L. ESTRANX.",null,"NOTA MEDIA","CUALIFICACIÓN"]
[null,null,null,"5º-CNB1.3.1 - Utiliza estratexias para realizar traballos de forma individual e en equipo, amosando habilidades para a resolución pacífica de conflitos.",null,"5º-CSB1.2.1 - Participa en actividades individuais e de grupo, e emprega estratexias de traballo cooperativo valorando o esforzo e o coidado do material.",null,"5º-EFB.1.1.3 - Mostra boa disposición para solucionar os conflitos de xeito razoable.",null,"5º-EFB.2.1.1 - Respecta a diversidade de realidades corporais e de niveis de competencia motriz entre os nenos e nenas da clase",null,"5º-EMB1.1.4 - Coñece, entende e respecta as normas de comportamento en audicións e representacións musicais.",null,"5º-EMB3.3.2 - Colabora co grupo en coordinación e con respecto cara ás demais persoas. ",null,null,null,null,"5º-LCB1.1.3 - Aplica as normas sociocomunicativas: escoita activa, espera de quendas, participación respectuosa, adecuación á intervención da persoa interlocutora e normas básicas de cortesía.",null,"5º-LCB1.3.3 - Participa activamente nas tarefas de aula, cooperando en situación de aprendizaxe compartida.",null,"5º-LGB1.5.1 - Atende ás intervencións dos e das demais en actos de fala orais, sen interromper",null,"5º-LGB1.6.2 - Respecta as opinións das persoas participantes nos intercambios orais e é consciente da posibilidade de empregar a lingua galega en calquera intercambio oral dentro da escola ou fóra dela. ",null,"5º-LGB1.6.5 - Participa na conversa formulando e contestando preguntas.",null,null,null,null,"5º-EPB2.5.3 - Participa e amosa interese polas actividades propostas, colaborando na recollida e na organización do material.",null,"5º-PLEB2.6 - Manifesta interese e respecto polas opinións do seus compañeiros/as."]
[null,null,"ALUMNO /A","Nota",0.1,"Nota",0.1,"Nota",0.1,"Nota",0.05,"Nota",0.05,"Nota",0.05,null,null,"ALUMNO /A","Nota",0.1,"Nota",0.1,"Nota",0.05,"Nota",0.1,"Nota",0.05,null,null,"ALUMNO /A","Nota",0.05,"Nota",0.1,1]
[null,1,null,null,{"$f":"D5*0.1","v":0},null,{"$f":"F5*0.1","v":0},null,{"$f":"H5*0.1","v":0},null,{"$f":"J5*0.05","v":0},null,{"$f":"L5*0.05","v":0},null,{"$f":"N5*0.05","v":0},null,1,null,null,{"$f":"S5*0.1","v":0},null,{"$f":"U5*0.1","v":0},null,{"$f":"W5*0.05","v":0},null,{"$f":"Y5*0.1","v":0},null,{"$f":"AA5*0.05","v":0},null,1,null,null,{"$f":"AF5*0.05","v":0},null,{"$f":"AH5*0.1","v":0},{"$f":"SUM(AI5,AG5,AB5,Z5,X5,V5,T5,O5,M5,K5,I5,G5,E5)","v":0},{"$f":"IF(AJ5<5,\"INSUFICIENTE\",IF(AJ5<6,\"SUFICIENTE\",IF(AJ5<7,\"BIEN\",IF(AJ5<9,\"NOTABLE\",\"SOBRESALIENTE\"))))","v":"INSUFICIENTE"}]
[null,2,null,null,{"$f":"D6*0.1","v":0},null,{"$f":"F6*0.1","v":0},null,{"$f":"H6*0.1","v":0},null,{"$f":"J6*0.05","v":0},null,{"$f":"L6*0.05","v":0},null,{"$f":"N6*0.05","v":0},null,2,null,null,{"$f":"S6*0.1","v":0},null,{"$f":"U6*0.1","v":0},null,{"$f":"W6*0.05","v":0},null,{"$f":"Y6*0.1","v":0},null,{"$f":"AA6*0.05","v":0},null,2,null,null,{"$f":"AF6*0.05","v":0},null,{"$f":"AH6*0.1","v":0},0,{"$f":"IF(AJ6<5,\"INSUFICIENTE\",IF(AJ6<6,\"SUFICIENTE\",IF(AJ6<7,\"BIEN\",IF(AJ6<9,\"NOTABLE\",\"SOBRESALIENTE\"))))","v":"INSUFICIENTE"}]
[null,3,null,null,0,null,0,null,0,null,0,null,0,null,0,null,3,null,null,0,null,0,null,0,null,0,null,0,null,3,null,null,0,null,0,0,"INSUFICIENTE"]
[null,4,null,null,0,null,0,null,0,null,0,null,0,null,0,null,4,null,null,0,null,0,null,0,null,0,null,0,null,4,null,null,0,null,0,0,"INSUFICIENTE"]
[null,5,null,null,0,null,0,null,0,null,0,null,0,null,0,null,5,null,null,0,null,0,null,0,null,0,null,0,null,5,null,null,0,null,0,0,"INSUFICIENTE"]
[null,{"$f":"B9+1","v":6},null,null,0,null,0,null,0,null,0,null,0,null,0,null,6,null,null,0,null,0,null,0,null,0,null,0,null,{"$f":"AD9+1","v":6},null,null,0,null,0,0,"INSUFICIENTE"]
[null,{"$f":"B10+1","v":7},null,null,0,null,0,null,0,null,0,null,0,null,0,null,7,null,null,0,null,0,null,0,null,0,null,0,null,{"$f":"AD10+1","v":7},null,null,0,null,0,0,"INSUFICIENTE"]
[null,8,null,null,0,null,0,null,0,null,0,null,0,null,0,null,8,null,null,0,null,0,null,0,null,0,null,0,null,8,null,null,0,null,0,0,"INSUFICIENTE"]
[null,9,null,null,0,null,0,null,0,null,0,null,0,null,0,null,9,null,null,0,null,0,null,0,null,0,null,0,null,9,null,null,0,null,0,0,"INSUFICIENTE"]
[null,10,null,null,0,null,0,null,0,null,0,null,0,null,0,null,10,null,null,0,null,0,null,0,null,0,null,0,null,10,null,null,0,null,0,0,"INSUFICIENTE"]
[null,11,null,null,0,null,0,null,0,null,0,null,0,null,0,null,11,null,null,0,null,0,null,0,null,0,null,0,null,11,null,null,0,null,0,0,"INSUFICIENTE"]
[null,12,null,null,0,null,0,null,0,null,0,null,0,null,0,null,12,null,null,0,null,0,null,0,null,0,null,0,null,12,null,null,0,null,0,0,"INSUFICIENTE"]
[null,13,null,null,0,null,0,null,0,null,0,null,0,null,0,null,13,null,null,0,null,0,null,0,null,0,null,0,null,13,null,null,0,null,0,0,"INSUFICIENTE"]
[null,14,null,null,0,null,0,null,0,null,0,null,0,null,0,null,14,null,null,0,null,0,null,0,null,0,null,0,null,14,null,null,0,null,0,0,"INSUFICIENTE"]
[null,15,null,null,0,null,0,null,0,null,0,null,0,null,0,null,15,null,null,0,null,0,null,0,null,0,null,0,null,15,null,null,0,null,0,0,"INSUFICIENTE"]
[null,16,null,null,0,null,0,null,0,null,0,null,0,null,0,null,16,null,null,0,null,0,null,0,null,0,null,0,null,16,null,null,0,null,0,0,"INSUFICIENTE"]
[null,17,null,null,0,null,0,null,0,null,0,null,0,null,0,null,17,null,null,0,null,0,null,0,null,0,null,0,null,17,null,null,0,null,0,0,"INSUFICIENTE"]
[null,18,null,null,0,null,0,null,0,null,0,null,0,null,0,null,18,null,null,0,null,0,null,0,null,0,null,0,null,18,null,null,0,null,0,0,"INSUFICIENTE"]
[null,19,null,null,0,null,0,null,0,null,0,null,0,null,0,null,19,null,null,0,null,0,null,0,null,0,null,0,null,19,null,null,0,null,0,0,"INSUFICIENTE"]
[null,20,null,null,0,null,0,null,0,null,0,null,0,null,0,null,20,null,null,0,null,0,null,0,null,0,null,0,null,20,null,null,0,null,0,0,"INSUFICIENTE"]
[null,21,null,null,0,null,0,null,0,null,0,null,0,null,0,null,21,null,null,0,null,0,null,0,null,0,null,0,null,21,null,null,0,null,0,0,"INSUFICIENTE"]
[null,22,null,null,0,null,0,null,0,null,0,null,0,null,0,null,22,null,null,0,null,0,null,0,null,0,null,0,null,22,null,null,0,null,0,0,"INSUFICIENTE"]
[null,23,null,null,0,null,0,null,0,null,0,null,0,null,0,null,23,null,null,0,null,0,null,0,null,0,null,0,null,23,null,null,0,null,0,0,"INSUFICIENTE"]
[null,24,null,null,0,null,0,null,0,null,0,null,0,null,0,null,24,null,null,0,null,0,null,0,null,0,null,0,null,24,null,null,0,null,0,0,"INSUFICIENTE"]
[null,25,null,null,0,null,0,null,0,null,0,null,0,null,0,null,25,null,null,0,null,0,null,0,null,0,null,0,null,25,null,null,0,null,0,0,"INSUFICIENTE"]